bitfinex/quotes_BTCUSD_20230113
["timestamp","ask_amount","ask_price","bid_price","bid_amount"]
[1673645676418,1.18078432,19467.0,19466.0,0.22812888]
[1673645676677,1.93298432,19467.0,19466.0,2.888e-05]
[1673645676950,1.93298432,19467.0,19465.0,0.00835701]
[1673645676951,0.22812,19466.0,19465.0,0.00835701]
[1673645677210,2.63300703,19466.0,19465.0,0.00835701]
[1673645677463,2.4310757,19466.0,19463.0,0.00821912]
[1673645677716,0.20936,19462.0,19456.0,0.00835701]
[1673645677960,0.22687825,19461.0,19456.0,0.00835701]
[1673645678213,0.49741925,19460.0,19458.0,0.6122587]
[1673645678458,0.85246757,19465.0,19462.0,0.63535307]
[1673645678459,0.1,19465.0,19462.0,0.63535307]
[1673645678699,0.22812,19466.0,19463.0,0.39213394]
[1673645678978,0.1,19467.0,19464.0,0.21030494]
[1673645679212,0.07,19467.0,19465.0,0.21030494]
[1673645679705,0.36158,19473.0,19466.0,0.20467382]
[1673645679706,0.1473,19473.0,19466.0,0.20467382]
[1673645679953,0.0002,19468.0,19467.0,0.39208094]
[1673645680197,0.0002,19468.0,19467.0,0.57917403]
[1673645680431,0.0002,19468.0,19467.0,0.3692621]
[1673645680672,0.0002,19468.0,19467.0,0.22096909]
[1673645680936,0.0002,19468.0,19467.0,0.181761]
[1673645681431,0.0002,19468.0,19467.0,0.18215401]
[1673645681923,0.613472,19476.0,19467.0,0.33005401]
[1673645682176,1.27999527,19475.0,19468.0,0.21030494]
[1673645682421,1.12928307,19474.0,19469.0,0.21030494]
[1673645682669,0.5262327,19472.0,19463.0,0.03714853]
[1673645682914,0.1479,19466.0,19464.0,0.51318981]
[1673645683170,0.045091,19465.0,19461.0,0.00019]
[1673645683426,0.332632,19464.0,19463.0,0.67857113]
[1673645683669,0.961611,19467.0,19466.0,0.59388414]
[1673645683670,0.513711,19467.0,19466.0,0.59388414]
[1673645683914,0.513675,19468.0,19466.0,0.80418908]
[1673645684153,0.0085,19467.0,19466.0,0.80418908]
[1673645684413,0.1,19470.0,19466.0,0.59388414]
[1673645684647,0.613523,19474.0,19467.0,0.26969335]
[1673645684906,0.5262327,19473.0,19468.0,0.21030494]
[1673645685148,0.1,19471.0,19469.0,0.21030494]
[1673645685387,0.5713237,19470.0,19464.0,0.70496608]
[1673645685624,0.50305037,19469.0,19464.0,0.70515608]
[1673645685878,0.324132,19468.0,19464.0,0.70515608]
[1673645686126,1.02928307,19467.0,19464.0,0.00019]
[1673645686375,0.424132,19466.0,19464.0,0.00019]
[1673645686609,0.1085,19466.0,19464.0,0.00019]
[1673645686859,0.1,19466.0,19464.0,0.53029022]
[1673645687115,0.1,19466.0,19464.0,0.00019]
[1673645687588,0.1,19467.0,19463.0,0.69215957]
[1673645687837,0.1,19467.0,19464.0,0.570802]
[1673645688077,0.1,19468.0,19464.0,0.78110694]
[1673645688353,0.1,19468.0,19465.0,0.39209594]
[1673645688625,0.1,19468.0,19465.0,0.21030494]
[1673645688890,0.613594,19471.0,19464.0,0.57038999]
[1673645689138,0.613594,19471.0,19464.0,0.21030494]
[1673645689139,0.5262327,19468.0,19464.0,0.21030494]
[1673645689388,0.5262327,19468.0,19462.0,0.88082954]
[1673645689389,1.13778307,19467.0,19462.0,0.88082954]
[1673645689661,0.17891837,19466.0,19463.0,0.60586393]
[1673645689921,0.0085,19467.0,19465.0,0.58550295]
[1673645690142,0.0085,19467.0,19466.0,0.181784]
[1673645690425,0.513789,19470.0,19466.0,0.21030494]
[1673645690677,0.00017,19470.0,19467.0,0.39207494]
[1673645690924,0.00017,19470.0,19468.0,0.39205994]
[1673645691155,0.00017,19470.0,19469.0,0.39204894]
[1673645691433,0.513482,19475.0,19469.0,0.43125383]
[1673645691699,0.513482,19475.0,19470.0,0.21030494]
[1673645691940,0.1,19474.0,19471.0,0.67088599]
[1673645692180,0.1,19472.0,19471.0,0.02999799]
[1673645692443,0.1,19472.0,19468.0,0.20109]
[1673645692684,0.31030494,19472.0,19468.0,0.35615268]
[1673645692955,0.21030494,19471.0,19465.0,0.70965999]
[1673645693218,0.1,19469.0,19465.0,0.70965999]
[1673645693464,0.21030494,19468.0,19465.0,0.70965999]
[1673645693707,0.21030494,19467.0,19464.0,0.00019]
[1673645693943,0.21030494,19466.0,19464.0,0.00019]
[1673645694201,0.21030494,19465.0,19464.0,0.00019]
[1673645694952,1.00888656,19466.0,19464.0,0.00019]
[1673645695197,0.1,19465.0,19462.0,0.65377747]
[1673645695445,0.31030494,19465.0,19462.0,0.65377747]
[1673645695698,0.59516256,19467.0,19464.0,0.65410014]
[1673645695934,0.59516256,19467.0,19465.0,0.181784]
[1673645695935,0.1,19467.0,19465.0,0.181784]
[1673645696196,0.613695,19467.0,19462.0,0.00957185]
[1673645696488,0.21880494,19466.0,19462.0,0.67974982]
[1673645696733,1.2276905,19466.0,19462.0,0.67974982]
[1673645696987,0.62406218,19465.0,19460.0,0.68239534]
[1673645697238,0.21030494,19464.0,19460.0,0.68239534]
[1673645697739,0.50306404,19467.0,19461.0,0.18183]
[1673645698034,0.1,19466.0,19462.0,0.51162155]
[1673645698280,0.54785439,19465.0,19463.0,0.181814]
[1673645698540,0.54785439,19465.0,19461.0,0.34350859]
[1673645698853,0.75815933,19465.0,19462.0,0.181824]
[1673645699037,0.54785439,19465.0,19461.0,0.44350859]
[1673645699290,0.75815933,19465.0,19462.0,0.181826]
[1673645699532,0.54785439,19465.0,19462.0,0.05253346]
[1673645699781,0.47861883,19467.0,19463.0,0.73328138]
[1673645700024,1.31668912,19468.0,19463.0,0.55146538]
[1673645700025,0.57099757,19466.0,19463.0,0.55146538]
[1673645700502,0.57099757,19466.0,19462.0,0.20043346]
[1673645700503,0.53025841,19465.0,19460.0,0.513859]
[1673645700748,1.01300812,19467.0,19460.0,0.51166755]
[1673645700749,0.21030494,19464.0,19460.0,0.51166755]
[1673645700987,0.21030494,19464.0,19461.0,0.82618769]
[1673645701234,0.65217084,19466.0,19462.0,0.1]
[1673645701507,0.65217084,19466.0,19463.0,0.181818]
[1673645701757,0.1002,19467.0,19465.0,0.1468]
[1673645701758,0.0002,19467.0,19465.0,0.1468]
[1673645702019,0.0002,19467.0,19466.0,0.819971]
[1673645702273,0.0002,19467.0,19466.0,0.306255]
[1673645702526,0.0002,19467.0,19466.0,0.87937911]
[1673645702778,0.65454171,19470.0,19467.0,0.67687211]
[1673645703029,0.1,19472.0,19468.0,0.72815021]
[1673645703274,0.513467,19476.0,19469.0,0.181744]
[1673645703275,0.48139284,19473.0,19469.0,0.181744]
[1673645703532,0.48139284,19473.0,19469.0,0.513633]
[1673645703787,0.58259844,19475.0,19470.0,0.3809903]
[1673645704038,0.58259844,19475.0,19470.0,0.7128583]
[1673645704288,0.48448329,19474.0,19471.0,0.181714]
[1673645704539,0.48448329,19474.0,19470.0,0.2190796]
[1673645704784,0.00017,19475.0,19471.0,1.35169192]
[1673645705027,0.00017,19475.0,19471.0,1.16997792]
[1673645705275,0.00017,19475.0,19472.0,0.181703]
[1673645705522,0.77563234,19475.0,19471.0,0.51704352]
[1673645705774,0.59961433,19473.0,19471.0,0.51704352]
[1673645706033,0.80991927,19473.0,19471.0,0.51704352]
[1673645706276,0.59961433,19473.0,19468.0,0.93359221]
[1673645706533,0.21030494,19472.0,19468.0,0.661545]
[1673645706796,0.21030494,19472.0,19466.0,0.70855762]
[1673645706797,0.72389394,19471.0,19466.0,0.70855762]
[1673645707057,0.1,19469.0,19466.0,0.70855762]
[1673645707307,0.21030494,19468.0,19464.0,1.036049]
[1673645707552,0.15008924,19466.0,19461.0,0.51383]
[1673645707799,0.36039418,19465.0,19462.0,0.65359894]
[1673645708039,0.46039418,19464.0,19461.0,0.52921362]
[1673645708283,0.21030494,19463.0,19461.0,0.52921362]
[1673645709018,0.1,19464.0,19461.0,0.52921362]
[1673645709260,0.20725288,19464.0,19461.0,0.52921362]
[1673645710016,0.47944322,19463.0,19460.0,0.70040408]
[1673645710254,0.47944322,19463.0,19461.0,0.59909609]
[1673645710757,0.99860548,19465.0,19462.0,0.62742916]
[1673645711266,0.66019676,19464.0,19462.0,0.62742916]
[1673645711513,0.1,19464.0,19462.0,0.62742916]
[1673645711758,0.47481216,19465.0,19463.0,0.06274292]
[1673645712043,0.45481216,19465.0,19463.0,0.06274292]
[1673645712280,0.35481216,19465.0,19463.0,0.57653492]
[1673645712493,0.35481216,19465.0,19464.0,0.84464003]
[1673645712781,0.35481216,19465.0,19464.0,2.06567503]
[1673645713024,0.35481216,19465.0,19464.0,1.55190603]
[1673645713558,0.35481216,19465.0,19464.0,2.00020336]
[1673645713810,0.35481216,19465.0,19464.0,1.561215]
[1673645714056,0.35481216,19465.0,19464.0,1.661215]
[1673645714545,0.68202288,19468.0,19464.0,2.04050622]
[1673645714546,0.80859634,19467.0,19464.0,2.04050622]
[1673645714792,0.80859634,19467.0,19464.0,1.70032622]
[1673645714793,1.01890128,19467.0,19464.0,1.70032622]
[1673645715036,0.49156998,19466.0,19464.0,1.70032622]
[1673645715289,0.70187492,19466.0,19463.0,1.07770214]
[1673645715762,0.49156998,19466.0,19463.0,1.07770214]
[1673645716032,0.0002,19467.0,19463.0,1.18671381]
[1673645716274,0.0002,19467.0,19464.0,0.181801]
[1673645716515,0.0002,19467.0,19465.0,1.027484]
[1673645716761,0.0002,19467.0,19466.0,0.2845294]
[1673645717014,0.0002,19467.0,19466.0,1.5692614]
[1673645717499,0.0002,19467.0,19466.0,1.8692614]
[1673645717749,0.30679977,19468.0,19466.0,1.8692614]
[1673645717985,0.30679977,19468.0,19467.0,0.4]
[1673645718235,0.46019965,19470.0,19467.0,2.04523184]
[1673645718480,0.46019965,19470.0,19469.0,0.1584]
[1673645718741,0.46019965,19470.0,19469.0,1.881055]
[1673645718987,0.46019965,19470.0,19469.0,1.209018]
[1673645720705,0.46019965,19470.0,19469.0,1.71471504]
[1673645720909,1.23909287,19470.0,19467.0,1.04605491]
[1673645721200,1.23909287,19470.0,19467.0,0.53238791]
[1673645721741,1.02878793,19470.0,19467.0,0.53238791]
[1673645721975,1.02878793,19470.0,19468.0,0.65843484]
[1673645722224,1.02878793,19470.0,19468.0,1.17209084]
[1673645722784,1.44869583,19469.0,19468.0,0.81037177]
[1673645722997,1.44869583,19469.0,19468.0,0.95323864]
[1673645723733,0.69020979,19469.0,19468.0,0.95323864]
[1673645724458,1.29007083,19469.0,19466.0,0.513692]
[1673645724699,1.29007083,19469.0,19465.0,0.513734]
[1673645724700,1.90399354,19467.0,19465.0,0.513734]
[1673645724945,1.90399354,19467.0,19464.0,0.513759]
[1673645724946,1.45231827,19466.0,19464.0,0.513759]
[1673645725192,0.74724864,19465.0,19464.0,0.61907485]
[1673645725431,0.38353029,19465.0,19464.0,1.19430213]
[1673645725918,1.20301574,19465.0,19464.0,0.513759]
[1673645726160,2.11507028,19465.0,19463.0,0.62235383]
[1673645726398,0.48353562,19464.0,19463.0,0.62235383]
[1673645726643,0.38353562,19464.0,19463.0,0.62235383]
[1673645727119,0.1534143,19464.0,19463.0,0.62235383]
[1673645727371,0.38353562,19464.0,19463.0,0.62235383]
[1673645727628,0.00017,19466.0,19464.0,0.63114539]
[1673645727873,0.00017,19466.0,19465.0,0.181782]
[1673645727874,0.64230183,19466.0,19465.0,0.181782]
[1673645728126,0.64230183,19466.0,19463.0,0.513772]
[1673645728372,0.27773342,19464.0,19463.0,0.67697595]
[1673645728625,0.27773342,19464.0,19462.0,0.513795]
[1673645728880,0.27773342,19464.0,19462.0,1.1886842]
[1673645730491,0.27773342,19464.0,19462.0,0.6748892]
[1673645730987,0.27773342,19464.0,19461.0,0.513829]
[1673645731231,0.68379362,19463.0,19460.0,0.513872]
[1673645731473,0.89409856,19463.0,19460.0,1.19660439]
[1673645731722,0.1,19462.0,19460.0,1.19660439]
[1673645732460,0.1,19462.0,19460.0,1.71047839]
[1673645732957,0.1,19462.0,19461.0,0.56631035]
[1673645733211,0.27773342,19464.0,19462.0,0.64439235]
[1673645733460,0.17773342,19464.0,19463.0,0.80460885]
[1673645733701,0.17711499,19464.0,19463.0,0.80461485]
[1673645733957,0.17711499,19464.0,19463.0,0.74538746]
[1673645734224,0.17711499,19464.0,19463.0,0.30440561]
[1673645734476,0.17711499,19464.0,19463.0,0.81820061]
[1673645734726,0.17711499,19464.0,19463.0,1.17509061]
[1673645734970,0.17711499,19464.0,19463.0,2.00246867]
[1673645735226,0.17711499,19464.0,19463.0,2.38482879]
[1673645735473,0.17711499,19464.0,19463.0,2.38490268]
[1673645735721,0.17711499,19464.0,19463.0,1.85246867]
[1673645736758,9.9e-07,19464.0,19463.0,1.85246867]
[1673645737027,1.21368882,19467.0,19463.0,2.30160324]
[1673645737257,1.21368882,19467.0,19466.0,0.64461175]
[1673645737533,1.21368882,19467.0,19466.0,2.64126694]
[1673645738286,1.21368882,19467.0,19466.0,3.09999045]
[1673645738791,1.21368882,19467.0,19466.0,2.45972567]
[1673645739058,1.21368882,19467.0,19466.0,2.65547026]
[1673645739305,1.21368882,19467.0,19466.0,2.6141273]
[1673645739550,1.21368882,19467.0,19466.0,2.64374874]
[1673645739797,1.21368882,19467.0,19466.0,2.41448061]
[1673645740657,1.21368882,19467.0,19466.0,2.79884526]
[1673645740921,1.21368882,19467.0,19466.0,2.79874151]
[1673645741165,1.21368882,19467.0,19466.0,2.49302959]
[1673645741666,1.21368882,19467.0,19466.0,2.79302959]
[1673645742177,0.01100359,19472.0,19466.0,3.32040748]
[1673645742431,0.01067613,19475.0,19471.0,0.25678]
[1673645742701,0.01067613,19475.0,19474.0,0.1568]
[1673645743006,0.01067613,19475.0,19474.0,1.697315]
[1673645743240,0.01067613,19475.0,19474.0,2.151585]
[1673645743494,0.01067613,19475.0,19474.0,1.851585]
[1673645743739,0.01067613,19475.0,19474.0,2.151585]
[1673645744979,0.0002,19478.0,19474.0,3.08727188]
[1673645745234,0.0002,19478.0,19477.0,0.1584]
[1673645745493,0.0110327,19479.0,19477.0,3.1492677]
[1673645745750,0.0110327,19479.0,19478.0,1.0804597]
[1673645746005,0.13248,19486.0,19478.0,1.58362823]
[1673645746006,0.63862015,19486.0,19478.0,1.58362823]
[1673645746254,0.63862015,19486.0,19484.0,0.1568]
[1673645746505,0.66824,19490.0,19485.0,1.02643]
[1673645746751,0.1,19489.0,19486.0,0.154142]
[1673645747012,0.2534143,19489.0,19485.0,0.513215]
[1673645747254,0.2534143,19489.0,19485.0,0.050789]
[1673645747255,0.1,19489.0,19485.0,0.050789]
[1673645747533,0.57853115,19487.0,19485.0,0.050789]
[1673645748304,0.57853115,19487.0,19486.0,0.154135]
[1673645748554,0.57853115,19487.0,19486.0,0.667323]
[1673645748814,0.6417522,19489.0,19486.0,1.180511]
[1673645749056,0.51716623,19488.0,19486.0,1.026376]
[1673645749301,0.120531,19490.0,19487.0,0.78004033]
[1673645749302,0.020531,19490.0,19487.0,0.78004033]
[1673645749547,0.020531,19490.0,19488.0,1.61741203]
[1673645749791,0.020531,19490.0,19489.0,0.154107]
[1673645750049,0.020531,19490.0,19489.0,1.180325]
[1673645750308,0.020531,19490.0,19488.0,0.513136]
[1673645750309,0.66814182,19489.0,19488.0,0.513136]
[1673645750799,0.51066925,19489.0,19488.0,0.513136]
[1673645751052,0.51066925,19489.0,19488.0,0.667249]
[1673645751308,0.020531,19490.0,19488.0,1.180385]
[1673645751566,0.020531,19490.0,19488.0,1.026272]
[1673645751820,0.020531,19490.0,19489.0,0.61731189]
[1673645752363,0.020531,19490.0,19489.0,1.79763589]
[1673645753098,0.020531,19490.0,19489.0,1.89763589]
[1673645753361,0.020531,19490.0,19489.0,1.280324]
[1673645753873,0.020531,19490.0,19489.0,1.580324]
[1673645755405,0.6243967,19496.0,19489.0,2.1065567]
[1673645755665,0.01245639,19496.0,19490.0,0.3995]
[1673645755902,0.01245639,19496.0,19492.0,0.25652]
[1673645755903,0.52303501,19496.0,19492.0,0.25652]
[1673645756160,0.52303501,19496.0,19491.0,2.363224]
[1673645756161,0.52303501,19496.0,19493.0,1.564649]
[1673645756369,0.52303501,19496.0,19494.0,0.154051]
[1673645756666,0.01245639,19496.0,19495.0,1.025904]
[1673645756915,0.01245639,19496.0,19495.0,0.666992]
[1673645757173,0.74306102,19496.0,19495.0,0.666992]
[1673645757447,0.60505106,19494.0,19493.0,0.513001]
[1673645758435,0.60505106,19494.0,19491.0,0.00019]
[1673645758436,0.1,19493.0,19491.0,0.00019]
[1673645758695,0.31030494,19493.0,19491.0,0.00019]
[1673645758943,0.1,19493.0,19491.0,0.00019]
[1673645759443,0.1,19493.0,19490.0,0.512771]
[1673645759444,0.69599327,19492.0,19490.0,0.512771]
[1673645759693,0.21030494,19492.0,19488.0,0.513126]
[1673645759943,0.21030494,19491.0,19487.0,0.513147]
[1673645760188,0.21030494,19491.0,19488.0,0.63408474]
[1673645760486,0.1,19490.0,19488.0,0.63408474]
[1673645760691,0.67475697,19492.0,19489.0,0.52742486]
[1673645760987,0.1,19491.0,19489.0,1.04044903]
[1673645761230,0.31030494,19491.0,19486.0,1.06556019]
[1673645761479,0.21030494,19490.0,19486.0,1.06556019]
[1673645761689,0.31030494,19491.0,19486.0,1.026559]
[1673645761987,0.60826796,19490.0,19487.0,0.53013683]
[1673645762234,0.55989506,19489.0,19487.0,1.04328283]
[1673645762487,0.55989506,19489.0,19486.0,0.00019]
[1673645762488,0.1,19488.0,19486.0,0.00019]
[1673645762746,0.31030494,19488.0,19486.0,0.00019]
[1673645762989,0.1,19488.0,19486.0,0.00019]
[1673645763244,0.1,19488.0,19484.0,1.05476186]
[1673645763510,0.31030494,19488.0,19484.0,1.05476186]
[1673645763812,0.1,19488.0,19484.0,1.56794286]
[1673645764063,0.31024494,19488.0,19484.0,1.56782286]
[1673645764302,0.31018494,19488.0,19484.0,1.025777]
[1673645764613,0.68682262,19487.0,19485.0,0.68835444]
[1673645765052,0.68682262,19487.0,19485.0,1.71476444]
[1673645765303,6e-05,19489.0,19485.0,1.02641]
[1673645765560,6e-05,19489.0,19486.0,0.1]
[1673645765800,6e-05,19489.0,19487.0,1.036324]
[1673645766299,6e-05,19489.0,19488.0,0.1]
[1673645766553,6e-05,19489.0,19488.0,1.159696]
[1673645766800,0.55578413,19495.0,19488.0,1.6859287]
[1673645767048,0.01245639,19496.0,19490.0,0.157]
[1673645767255,0.01245639,19496.0,19492.0,0.1568]
[1673645767539,0.01245639,19496.0,19493.0,1.638997]
[1673645767784,0.01245639,19496.0,19493.0,1.62698012]
[1673645768285,0.01245639,19496.0,19493.0,1.62648012]
[1673645768789,0.01245639,19496.0,19493.0,2.15271282]
[1673645769045,0.01245639,19496.0,19494.0,0.41230157]
[1673645769291,0.01245639,19496.0,19495.0,1.53996126]
[1673645769781,0.01245639,19496.0,19495.0,1.83996126]
[1673645770032,0.01245639,19496.0,19495.0,1.99836126]
[1673645770286,0.01245639,19496.0,19495.0,2.78105396]
[1673645770534,0.01195538,19497.0,19495.0,2.78105396]
[1673645770782,0.03346609,19502.0,19496.0,0.9262327]
[1673645771030,0.03346609,19502.0,19500.0,0.25641]
[1673645771276,0.03346609,19502.0,19501.0,1.94836423]
[1673645771759,0.03346609,19502.0,19501.0,2.20516423]
[1673645772012,0.03346609,19502.0,19501.0,2.73139693]
[1673645772261,0.01562484,19508.0,19501.0,2.73139693]
[1673645772504,0.01562484,19508.0,19504.0,0.25636]
[1673645772505,6e-05,19505.0,19504.0,0.25636]
[1673645772756,6e-05,19505.0,19504.0,2.60722]
[1673645773001,0.11562484,19508.0,19504.0,3.1334527]
[1673645773249,0.01562484,19508.0,19507.0,0.41471]
[1673645773514,0.0021,19516.0,19507.0,3.2914867]
[1673645773515,0.52457126,19513.0,19507.0,3.2914867]
[1673645773773,0.52457126,19513.0,19510.0,0.25627]
[1673645774024,0.0021,19516.0,19511.0,1.5769217]
[1673645774025,0.0001639,19512.0,19511.0,1.5769217]
[1673645774290,0.1021,19516.0,19511.0,0.512531]
[1673645774291,0.21030494,19513.0,19511.0,0.512531]
[1673645774531,0.3654,19516.0,19511.0,0.512531]
[1673645774801,0.05228007,19515.0,19510.0,0.512557]
[1673645775049,0.36348,19512.0,19510.0,0.0512557]
[1673645775297,0.15376709,19509.0,19505.0,0.512677]
[1673645775562,0.43681294,19508.0,19505.0,0.512677]
[1673645775809,0.21030494,19508.0,19505.0,0.512677]
[1673645776068,0.21030494,19508.0,19504.0,0.512705]
[1673645776309,0.21046884,19507.0,19503.0,0.512739]
[1673645776572,0.21046884,19507.0,19503.0,1.09056215]
[1673645776573,0.31030494,19506.0,19503.0,1.09056215]
[1673645776824,0.21030494,19505.0,19503.0,0.512239]
[1673645777071,0.1,19506.0,19502.0,0.512946]
[1673645777072,0.21030494,19504.0,19502.0,0.00019]
[1673645777316,0.1,19503.0,19502.0,0.00019]
[1673645777566,0.0085,19503.0,19502.0,0.00019]
[1673645777819,0.1,19506.0,19502.0,0.00019]
[1673645778103,0.51797208,19504.0,19502.0,0.00019]
[1673645778344,0.1,19503.0,19501.0,0.50454937]
[1673645778591,0.777888,19508.0,19501.0,0.50454937]
[1673645778592,0.64696709,19509.0,19501.0,1.02558]
[1673645778830,0.15376709,19509.0,19502.0,6.125e-05]
[1673645779073,0.15376709,19509.0,19504.0,1.794496]
[1673645779314,0.15376709,19509.0,19506.0,0.1484]
[1673645779566,0.15376709,19509.0,19507.0,1.537908]
[1673645779879,0.0001639,19508.0,19507.0,1.025272]
[1673645780126,0.0001639,19508.0,19504.0,0.00019]
[1673645780127,0.42925884,19508.0,19504.0,0.00019]
[1673645780370,0.31030494,19507.0,19504.0,0.00019]
[1673645780616,0.1,19507.0,19504.0,0.7018058]
[1673645780879,0.60794638,19508.0,19506.0,0.61120721]
[1673645781114,0.15376709,19509.0,19507.0,1.025272]
[1673645781366,0.15376709,19509.0,19508.0,0.07866157]
[1673645781619,0.15376709,19509.0,19508.0,0.89127157]
[1673645781871,0.09376709,19513.0,19508.0,0.59127157]
[1673645782109,0.09376709,19513.0,19508.0,0.41505896]
[1673645782110,0.30407203,19513.0,19508.0,0.41505896]
[1673645782612,0.30407203,19513.0,19507.0,0.512636]
[1673645782862,0.30407203,19513.0,19506.0,0.42589772]
[1673645782863,0.21030494,19512.0,19506.0,0.42589772]
[1673645783110,0.03256602,19508.0,19506.0,0.29553331]
[1673645783355,0.03256602,19508.0,19506.0,0.13678906]
[1673645783356,0.23303486,19508.0,19506.0,0.13678906]
[1673645783603,0.23303486,19508.0,19503.0,0.512732]
[1673645783845,0.23303486,19508.0,19504.0,1.18385106]
[1673645783846,0.21030494,19507.0,19504.0,1.18385106]
[1673645784090,0.23287096,19508.0,19504.0,1.18385106]
[1673645784597,0.23287096,19508.0,19504.0,0.512706]
[1673645784598,0.21030494,19507.0,19504.0,0.512706]
[1673645784845,0.21030494,19507.0,19503.0,0.50627958]
[1673645784846,0.0001639,19506.0,19503.0,0.50627958]
[1673645785109,0.0001639,19506.0,19503.0,0.00019]
[1673645785110,0.1,19505.0,19503.0,0.00019]
[1673645785859,0.50814603,19507.0,19504.0,0.69412737]
[1673645786113,0.02256602,19508.0,19505.0,0.06891274]
[1673645786114,0.1,19506.0,19505.0,0.06891274]
[1673645786368,0.1,19506.0,19504.0,1.67065855]
[1673645786616,0.1,19506.0,19504.0,0.512705]
[1673645786872,0.02256602,19508.0,19504.0,0.512705]
[1673645787118,0.02256602,19508.0,19504.0,1.02542]
[1673645787632,0.02256602,19508.0,19505.0,0.7825727]
[1673645787879,0.02256602,19508.0,19506.0,1.61624327]
[1673645788137,0.02256602,19508.0,19507.0,0.59872551]
[1673645788400,0.02258762,19510.0,19506.0,1.61624327]
[1673645788653,0.02258762,19510.0,19509.0,0.25629]
[1673645788901,0.02258762,19510.0,19509.0,1.025166]
[1673645789146,0.02258762,19510.0,19509.0,1.0844103]
[1673645789883,0.02258762,19510.0,19509.0,1.91020423]
[1673645790145,0.02258762,19510.0,19509.0,1.38397153]
[1673645790400,0.02258762,19510.0,19509.0,1.91020423]
[1673645791402,0.0121611,19514.0,19509.0,2.32284423]
[1673645791656,0.1021,19516.0,19513.0,0.1568]
[1673645791657,0.0021,19516.0,19513.0,0.1568]
[1673645791911,0.0021,19516.0,19514.0,2.57610191]
[1673645792169,0.0021,19516.0,19515.0,0.885477]
[1673645792426,114.6125574,19520.0,19515.0,1.043877]
[1673645792427,114.01920529,19520.0,19515.0,1.043877]
[1673645792678,114.01920529,19520.0,19519.0,0.1584]
[1673645792679,98.57673497,19520.0,19519.0,0.1584]
[1673645793045,98.57673497,19520.0,19519.0,1.95153419]
[1673645793046,85.8944771,19520.0,19519.0,1.95153419]
[1673645793047,85.8944771,19520.0,19519.0,2.47776689]
[1673645793048,82.4441771,19520.0,19519.0,2.47776689]
[1673645793217,76.53989392,19520.0,19519.0,5.85806113]
[1673645793482,76.53989392,19520.0,19519.0,6.58668574]
[1673645793483,67.96543314,19520.0,19519.0,6.58668574]
[1673645793697,67.96543314,19520.0,19519.0,10.27461663]
[1673645793698,61.66554703,19520.0,19519.0,10.27461663]
[1673645793932,61.66554703,19520.0,19519.0,8.32131764]
[1673645793933,55.44263606,19520.0,19519.0,8.32131764]
[1673645794168,48.92116935,19520.0,19519.0,9.54663589]
[1673645794399,44.90893435,19520.0,19519.0,13.36030894]
[1673645794638,44.33306364,19520.0,19519.0,7.2593359]
[1673645794923,38.97259779,19520.0,19519.0,6.78555824]
[1673645795177,37.19273179,19520.0,19519.0,6.64876462]
[1673645795412,37.13993973,19520.0,19519.0,2.23005419]
[1673645795655,37.13993973,19520.0,19519.0,2.23427519]
[1673645795656,37.24308731,19520.0,19519.0,2.23427519]
[1673645795886,36.50654967,19520.0,19519.0,2.18450477]
[1673645796129,36.17566667,19520.0,19519.0,1.540542]
[1673645796363,36.17566667,19520.0,19519.0,4.76215193]
[1673645796592,36.17566667,19520.0,19519.0,4.56215193]
[1673645796833,36.1572176,19520.0,19519.0,1.182142]
[1673645797061,36.12042434,19520.0,19519.0,0.669821]
[1673645797307,36.4361882,19520.0,19519.0,0.158]
[1673645797545,37.31674718,19520.0,19519.0,0.25613]
[1673645797788,37.10660614,19520.0,19518.0,0.25617]
[1673645798036,0.7262327,19519.0,19518.0,0.25617]
[1673645798266,0.0005,19518.0,19516.0,0.41309]
[1673645798528,0.5262327,19517.0,19516.0,0.1569]
[1673645798789,0.21080494,19518.0,19516.0,0.1569]
[1673645798790,0.0005,19518.0,19516.0,0.1569]
[1673645799289,0.73653764,19517.0,19516.0,0.1569]
[1673645799537,0.0569,19516.0,19515.0,0.51380905]
[1673645799769,0.7081927,19516.0,19515.0,0.63820036]
[1673645800033,0.5831327,19516.0,19515.0,0.1568]
[1673645800271,0.78959543,19516.0,19515.0,0.1568]
[1673645800526,0.78959543,19516.0,19513.0,0.25643]
[1673645800527,0.57929049,19516.0,19513.0,0.00019]
[1673645800761,0.5262327,19514.0,19512.0,0.62676126]
[1673645801011,0.93720153,19513.0,19510.0,2.0]
[1673645801251,0.5262327,19512.0,19510.0,2.0]
[1673645801483,0.5262327,19511.0,19510.0,2.0]
[1673645801969,0.2,19513.0,19510.0,2.0]
[1673645802200,0.5262327,19512.0,19511.0,0.1564]
[1673645802471,0.5262327,19512.0,19511.0,0.41465]
[1673645802708,0.5262327,19512.0,19511.0,0.1584]
[1673645802937,0.5262327,19512.0,19511.0,0.80139533]
[1673645803160,0.5262327,19512.0,19511.0,0.64299533]
[1673645803664,1.08847919,19512.0,19510.0,2.0]
[1673645803912,0.5262327,19511.0,19510.0,2.0]
[1673645804152,0.5262327,19511.0,19510.0,2.00009186]
[1673645804402,0.5262327,19511.0,19510.0,1.9995]
[1673645805103,0.00019,19514.0,19510.0,3.51214886]
[1673645805376,0.00019,19514.0,19513.0,1.4146]
[1673645805642,0.00019,19514.0,19513.0,1.183356]
[1673645805643,0.5264227,19514.0,19513.0,1.183356]
[1673645805878,0.5264227,19514.0,19513.0,1.483356]
[1673645806113,0.5264227,19514.0,19513.0,1.48344785]
[1673645806343,1.0602579,19514.0,19511.0,0.56095893]
[1673645806596,0.5262327,19513.0,19511.0,0.56095893]
[1673645806846,0.5262327,19514.0,19512.0,0.925035]
[1673645807083,0.0005,19518.0,19513.0,1.0]
[1673645807316,0.5262327,19518.0,19517.0,0.41455]
[1673645807560,0.5262327,19518.0,19517.0,0.670773]
[1673645807797,0.5262327,19518.0,19517.0,0.970773]
[1673645808037,0.52689659,19518.0,19517.0,0.4584]
[1673645808271,0.5262327,19518.0,19517.0,0.4584]
[1673645808505,1.21103216,19518.0,19517.0,0.4584]
[1673645808759,1.21103216,19518.0,19517.0,0.1584]
[1673645808994,0.5262327,19518.0,19517.0,0.1584]
[1673645809218,0.5262327,19518.0,19517.0,0.1579]
[1673645809463,35.9099555,19520.0,19517.0,0.71407]
[1673645809711,35.2104555,19520.0,19519.0,0.1584]
[1673645809953,35.2104555,19520.0,19519.0,0.970721]
[1673645809954,35.1954555,19520.0,19519.0,0.970721]
[1673645810249,35.19611939,19520.0,19519.0,0.970721]